[Event "Budapest IM-B ONE WEEK Feb 2024"]
[Site "Budapest"]
[Date "2024.02.26"]
[Round "1.1"]
[White "Polyik, Peter"]
[Black "Skytte, Rasmus"]
[Result "0-1"]
[ECO "B40"]
[WhiteElo "2289"]
[BlackElo "2342"]
[Annotator "TA"]
[PlyCount "66"]
[EventDate "2024.02.25"]
[EventType "tourn"]
[EventCountry "HUN"]
[SourceTitle "playchess.com"]
[Source "ChessBase"]
[SourceQuality "1"]
[TimeControl "5400+30"]

{[%evp 9,66,9,2,0,9,2,9,-8,-6,0,0,-9,4,13,3,21,8,22,16,-45,-63,-45,-57,-48,-36,-115,-113,-118,-33,-75,-74,-148,-94,-106,-115,-109,-103,-116,-100,-111,-99,-127,-119,-169,-167,-414,-143,-217,-195,-200,-211,-833,-836,-966,-966,-860,-735,-927,-918]} 1. e4 {[%emt 0:00:04]} c5 {[%emt 0:02:53]} 2. Nf3 {[%emt 0:00:09]} e6 {[%emt 0:00:07]} 3. b3 {[%emt 0:00:37]} Nc6 {[%emt 0:01:24]} 4. Bb2 {[%emt 0:00:10]} a6 {[%emt 0:00:19]} 5. c4 {[%emt 0:00:52]} Qc7 {[%emt 0:05:03]} 6. g3 {[%emt 0:00:44]} Nf6 {[%emt 0:02:19]} 7. e5 {[%emt 0:04:51]} Ng4 {[%emt 0:02:31][%cal Rg4e5]} 8. Bg2 {[%emt 0:01:34] The position is equal.} Ngxe5 {[%emt 0:03:08]} 9. Nxe5 {[%emt 0:00:40]} Nxe5 {[%emt 0:00:10]} 10. O-O $1 {[%emt 0:00:22]} d6 {[%emt 0:02:35]} 11. d4 {[%emt 0:04:11]} cxd4 {[%emt 0:04:01]} 12. Qxd4 {[%emt 0:02:37]} Bd7 {[%emt 0:04:23]} 13. Nc3 {[%emt 0:04:43]} Bc6 {[%emt 0:07:07] [#]} 14. Nd5 {[%emt 0:27:39]} exd5 $15 {[%emt 0:04:41]} 15. cxd5 {[%emt 0:01:34][%cal Oa1c1] Hoping for Rac1!} Bb5 {[%emt 0:04:39]} 16. Rfc1 {[%emt 0:14:32]} Qd8 {[%emt 0:05:34] Threatens to win with ...f6.} 17. a4 {[%emt 0:02:09]} (17. f4 $1 $15 f6 (17... Nd3 18. Re1+ Be7 19. Qxg7 $16) 18. a4 (18. fxe5 dxe5 19. Qe3 Bd6 $15)) 17... Bd7 $17 {[%emt 0:03:10]} 18. f4 {[%emt 0:01:12] [#] Dodges f6} f6 {[%emt 0:06:05]} 19. fxe5 {[%emt 0:06:13]} (19. Qe3 Be7) 19... dxe5 {[%emt 0:00:43]} 20. Qd3 {[%emt 0:09:43]} (20. Qe3 $142) 20... Qb6+ {[%emt 0:07:32]} ({Black should try} 20... Bd6 21. Be4 Kf7) 21. Kh1 {[%emt 0:00:16]} Bd6 {[%emt 0:00:55]} 22. Be4 {[%emt 0:01:35][%cal Oc1c4]} Ke7 {[%emt 0:02:27]} (22... Rc8 {simplifies} 23. Rxc8+ Bxc8 24. Rc1 Bd7) 23. Rf1 {[%emt 0:09:38]} g6 {[%emt 0:03:56]} 24. a5 {[%emt 0:04:16]} Qb5 {[%emt 0:03:04]} 25. Qf3 {[%emt 0:00:45] [#]} Rhf8 {[%emt 0:01:40]} 26. g4 {[%emt 0:00:13]} (26. Bd3 $17 {keeps fighting.} Qc5 (26... Qxb3 27. Rfb1 $14) 27. Bc4) 26... Rac8 $19 {[%emt 0:05:13] Active counter play!} 27. Qg3 $2 {[%emt 0:00:31]} (27. Rfe1) 27... Qb4 $2 {[%emt 0:03:32]} (27... Qe2 $19 28. Qg2 Qxg2+ (28... Qxg4 $2 29. Qxg4 Bxg4 30. Bd3 $19) (28... Bxg4 29. Rf2 $14) 29. Bxg2 Bxg4 (29... Rc2 $2 30. Bc1 $19)) 28. Rae1 {[%emt 0:01:20]} (28. Rfe1 $17 {was necessary.}) 28... Qd2 {[%emt 0:02:34]} ({Weaker is} 28... Qxa5 29. g5 Qb4 30. Bg2 $15) 29. Bc1 {[%emt 0:00:15] [#]} Qd4 {[%emt 0:00:12][%cal Oc8c1] White must now prevent ...Rxc1!} 30. Qh4 $2 {[%emt 0:00:31] [#]} (30. Qf3) 30... Rxc1 $1 {[%emt 0:00:33][%mdl 512] Black is clearly winning.} 31. Rxc1 {[%emt 0:01:17]} (31. Rg1 Rxe1) 31... Qxe4+ {[%emt 0:00:20]} 32. Kg1 {[%emt 0:00:02]} Qxg4+ {[%emt 0:01:55]} 33. Qg3 {[%emt 0:00:21]} Qd4+ {[%emt 0:01:40] Weighted Error Value: White=0.73/Black=0.31.  Missed win:     	---       	Black=1      Mistake:       	White=7     	Black=2      Inaccurate:     	White=1     	---        OK:         	White=4     	Black=8      Best:        	White=2     	Black=2      Strong:       	White=1     	---        Brilliant:      	---       	Black=1} 0-1

[Event "Budapest IM-B ONE WEEK Feb 2024"]
[Site "Budapest"]
[Date "2024.02.26"]
[Round "1.2"]
[White "Golis, Wiktor"]
[Black "Haszon, David"]
[Result "1-0"]
[ECO "B30"]
[WhiteElo "2123"]
[BlackElo "2245"]
[Annotator "TA"]
[PlyCount "79"]
[EventDate "2024.02.25"]
[EventType "tourn"]
[EventCountry "HUN"]
[SourceTitle "playchess.com"]
[Source "ChessBase"]
[SourceQuality "1"]
[TimeControl "5400+30"]

{[%evp 14,79,62,39,91,29,81,77,71,81,90,52,65,41,49,32,82,78,137,115,79,100,133,126,108,143,138,126,139,141,191,173,227,96,77,79,75,0,0,15,272,264,323,207,213,211,291,282,502,495,498,354,351,343,341,318,404,404,398,345,635,635,609,629,608,568,568,549]} 1. e4 {[%emt 0:00:12]} c5 {[%emt 0:00:09]} 2. Nf3 {[%emt 0:00:16]} Nc6 {[%emt 0:00:09]} 3. Bb5 {[%emt 0:01:08]} Qb6 {[%emt 0:00:46]} 4. Nc3 {[%emt 0:14:00]} e6 {[%emt 0:00:31]} 5. Bxc6 {[%emt 0:04:26]} Qxc6 {[%emt 0:02:52]} 6. O-O {[%emt 0:02:04]} a6 {[%emt 0:02:50]} 7. d4 {[%emt 0:05:26]} cxd4 {[%emt 0:00:39]} 8. Nxd4 {[%emt 0:00:08]} Qc4 {[%emt 0:06:14]} (8... Qc7 $14) 9. Bg5 {[%emt 0:16:33]} (9. Re1 $16) 9... f6 {[%emt 0:07:33]} (9... h6 $11 10. Bh4 b5) 10. Be3 $16 {[%emt 0:06:54]} b5 {[%emt 0:09:59] White is better.} 11. a3 {[%emt 0:10:41]} Bb7 {[%emt 0:05:51]} 12. Qd2 {[%emt 0:01:59]} Ne7 {[%emt 0:14:00]} 13. Rad1 {[%emt 0:05:57][%cal Od4b5] Black must now prevent Ndxb5!} Rd8 {[%emt 0:01:43]} 14. f4 {[%emt 0:07:49][%cal Bf2f4,Bf4f5][%mdl 32]} Qc8 {[%emt 0:06:27]} (14... Nc8 $1 $14) 15. Qe2 {[%emt 0:02:46]} Nc6 {[%emt 0:04:37]} ({Better is} 15... Kf7) 16. Qh5+ {[%emt 0:06:55]} g6 {[%emt 0:01:34]} 17. Qh4 {[%emt 0:00:09]} Bg7 {[%emt 0:01:25]} 18. f5 {[%emt 0:04:22]} O-O {[%emt 0:04:37]} 19. Nxc6 {[%emt 0:05:03]} Qxc6 {[%emt 0:01:31] Black is weak on the dark squares} 20. fxg6 {[%emt 0:02:11]} hxg6 {[%emt 0:00:14] [#]} 21. Qg3 $1 {[%emt 0:00:00]} Kf7 {[%emt 0:04:35]} (21... g5 $16 {is a better defense.}) 22. Rd6 {[%emt 0:00:35]} Qc7 {[%emt 0:05:57]} (22... Qc8 {was called for.} 23. Bd4 Qb8) 23. Rfd1 {[%emt 0:00:57]} (23. Bb6 Qc8 24. Rfd1 Bc6) (23. e5 $18 {exf6 is the strong threat.} f5 24. Bb6) 23... Bc6 {[%emt 0:00:41] [#]} 24. e5 $1 {[%emt 0:01:08]} fxe5 {[%emt 0:03:19]} 25. R6d2 {[%emt 0:00:38] White is much more active.} (25. Qh4 $16 {Threatens to win with Qh7.} Kg8 26. Ne4 Bxe4 27. Qxe4) 25... d5 $11 {[%emt 0:01:07]} 26. Bc5 $36 {[%emt 0:00:20][%mdl 2048] White has some pressure.} d4 $2 {[%emt 0:02:12][%mdl 8192] Black cannot hold the game after this.} 27. Rf1+ {[%emt 0:00:49]} Bf6 {[%emt 0:02:49]} 28. Rdf2 {[%emt 0:00:07]} (28. Rxf6+ Kxf6 29. Bxf8 (29. Bxd4 Rxd4 30. Rxd4 Qa7 $11) 29... Rxf8 $11) 28... Kg7 {[%emt 0:00:49]} 29. Ne2 {[%emt 0:00:02]} Rf7 {[%emt 0:01:18] [#]} 30. Bxd4 $1 {[%emt 0:01:06][%cal Of2f6]} Be4 $2 {[%emt 0:03:07] [#]} (30... exd4 $2 31. Rxf6 Qxg3 32. Rxf7+ Kg8 33. Nxg3 $18) (30... Rd5 31. h4 Rxd4) 31. Rxf6 $1 $18 {[%emt 0:00:41][%mdl 512]} Rxf6 {[%emt 0:00:11]} 32. Qxe5 {[%emt 0:00:19]} Qxe5 {[%emt 0:00:41]} (32... Qxc2 33. Qxf6+ Kh7 34. Qg7#) 33. Bxe5 {[%emt 0:00:03]} Bf5 {[%emt 0:00:36]} 34. g4 {[%emt 0:00:51][%cal Bg2g4,Bg4g5][%mdl 32]} (34. Bxf6+ Kxf6 35. g4 Rd2) (34. Nd4 Rd5 35. Nxe6+ (35. Bxf6+ Kxf6 36. c3 e5 $11) 35... Bxe6 $18) 34... Rd2 {[%emt 0:00:26]} 35. Nd4 {[%emt 0:00:31]} (35. Bxf6+ Kxf6 36. Nc3 Rxc2 37. gxf5 exf5 38. Nd5+ Ke6 $18) ({Not} 35. gxf5 Rxe2 36. Bxf6+ Kxf6 $14) 35... Kf7 {[%emt 0:00:43]} 36. g5 {[%emt 0:00:50]} ({But not} 36. gxf5 gxf5 37. Bxf6 Kxf6 $18) (36. Bxf6 Kxf6 37. Nb3 Rxc2 38. gxf5 gxf5 $16) 36... Rxd4 {[%emt 0:00:34]} (36... Rg2+ 37. Kxg2 Bh3+ 38. Kxh3 Rxf1) 37. Bxd4 {[%emt 0:00:04] White is clearly winning.} e5 {[%emt 0:00:06]} 38. gxf6 {[%emt 0:00:05][%cal Of1f5] Rxf5! would now be deadly.} (38. Bxe5 Re6 39. Bf6 Bxc2 $11) 38... exd4 {[%emt 0:00:04]} 39. Rd1 {[%emt 0:00:10]} Kxf6 {[%emt 0:00:14]} 40. Rxd4 {Weighted Error Value: White=0.30/Black=0.55.  Loses game:     	---       	Black=1      Mistake:       	White=3     	Black=7      Inaccurate:     	White=2     	Black=2      OK:         	White=7     	Black=8      Best:        	White=1     	Black=2      Strong:       	White=2     	---        Brilliant:      	White=1     	---} 1-0

[Event "Budapest IM-B ONE WEEK Feb 2024"]
[Site "Budapest"]
[Date "2024.02.26"]
[Round "1.3"]
[White "Mouhamad, Joachim"]
[Black "Matyassy, Lazar"]
[Result "1-0"]
[ECO "C67"]
[WhiteElo "2316"]
[BlackElo "2176"]
[Annotator "TA"]
[PlyCount "117"]
[EventDate "2024.02.25"]
[EventType "tourn"]
[EventCountry "HUN"]
[SourceTitle "playchess.com"]
[Source "ChessBase"]
[SourceQuality "1"]
[TimeControl "5400+30"]

{[%evp 16,117,22,18,29,19,12,19,15,20,21,12,13,0,10,0,6,2,16,10,16,15,15,14,18,15,12,9,18,14,23,15,17,20,21,20,28,22,25,11,27,2,9,9,12,8,10,10,18,3,3,0,0,0,0,0,0,0,3,4,16,0,3,0,0,0,0,0,14,0,11,11,78,70,70,70,89,65,791,664,1684,6375,6375,6003,4133,2979,6375,4269,29969,29971,29970,29972,29972,29973,29973,29974,29974,29975,29975,29976,29976,29977,29980,29977]} 1. e4 {[%emt 0:00:06]} e5 {[%emt 0:00:05]} 2. Nf3 {[%emt 0:00:26]} Nc6 {[%emt 0:00:05]} 3. Bb5 {[%emt 0:02:21]} Nf6 {[%emt 0:00:07]} 4. O-O {[%emt 0:00:49][%cal Bh1f1,Bf1e1,Be1e5][%mdl 32]} Nxe4 {[%emt 0:00:37]} 5. Re1 {[%emt 0:00:22]} Nd6 {[%emt 0:00:07]} 6. Nxe5 {[%emt 0:05:05]} Be7 {[%emt 0:00:35]} 7. Bf1 {[%emt 0:00:27]} Nxe5 {[%emt 0:00:43]} 8. Rxe5 {[%emt 0:00:03]} O-O {[%emt 0:00:10]} 9. d4 {[%emt 0:01:36]} Bf6 {[%emt 0:00:32]} 10. Re2 {[%emt 0:03:08]} Nf5 {[%emt 0:04:57]} 11. c3 {[%emt 0:00:27]} d5 {[%emt 0:01:15] The position is equal.} 12. Nd2 {[%emt 0:02:12]} Nd6 {[%emt 0:01:50]} 13. h3 {[%emt 0:00:46] Repels Bg4} Bg5 {[%emt 0:07:05]} 14. Nf3 {[%emt 0:04:14]} Bxc1 {[%emt 0:00:24]} 15. Qxc1 {[%emt 0:01:19]} Bf5 {[%emt 0:00:49]} 16. Re1 {[%emt 0:10:48]} Be4 {[%emt 0:17:55]} 17. Qf4 {[%emt 0:01:15]} Bxf3 {[%emt 0:02:39]} 18. Qxf3 {[%emt 0:00:10]} c6 {[%emt 0:00:07]} 19. Qf4 {[%emt 0:06:58]} Qd7 {[%emt 0:03:12]} 20. Bd3 {[%emt 0:02:50]} Rae8 {[%emt 0:02:58]} 21. Kf1 {[%emt 0:04:48][%cal Bg1f1,Bf1g2,Bg2g3][%mdl 32]} Rxe1+ {[%emt 0:12:28]} 22. Rxe1 {[%emt 0:00:04]} Qd8 {[%emt 0:00:18]} 23. h4 {[%emt 0:05:12]} Re8 {[%emt 0:04:56]} 24. Re5 {[%emt 0:11:06]} h6 {[%emt 0:12:07]} 25. g3 {[%emt 0:06:36][%cal Bg2g3,Bg3g4][%mdl 32]} a6 {[%emt 0:03:44]} 26. Kg2 {[%emt 0:01:26]} Re7 {[%emt 0:03:24]} 27. Qe3 {[%emt 0:12:01]} Kf8 {[%emt 0:01:06]} 28. g4 {[%emt 0:05:38]} Re8 {[%emt 0:10:51]} 29. Kg3 {[%emt 0:01:11]} Qb6 {[%emt 0:02:08]} 30. Qe2 {[%emt 0:01:50]} Qc7 {[%emt 0:03:58][%cal Od6c4] [#] Threatens to win with ...Nc4!} 31. Kg2 {[%emt 0:00:08]} Qd8 {[%emt 0:01:40]} 32. g5 {[%emt 0:01:04]} hxg5 {[%emt 0:00:20]} 33. hxg5 {[%emt 0:00:02] And now Qh5 would win.} Rxe5 {[%emt 0:00:18]} 34. Qxe5 $11 {[%emt 0:00:12][%mdl 4096] Endgame. KQB-KQN} Qe7 {[%emt 0:00:28]} 35. Qf4 {[%emt 0:04:48]} Ke8 {[%emt 0:01:12]} 36. b3 {[%emt 0:00:50]} f6 {[%emt 0:02:39]} 37. gxf6 {[%emt 0:00:42]} Qxf6 {[%emt 0:00:19]} 38. Qg4 {[%emt 0:02:08]} (38. Qxf6 {simplifies} gxf6 39. c4 dxc4 40. bxc4 b5 41. c5) 38... Kd8 {[%emt 0:00:45]} 39. c4 {[%emt 0:00:32]} dxc4 {[%emt 0:00:31]} 40. bxc4 {[%emt 0:00:03]} Ke7 {[%emt 0:00:32]} 41. a4 {[%emt 0:00:34][%cal Ba2a4,Ba4a5][%mdl 32]} Kd8 {[%emt 0:00:31]} 42. Kg3 {[%emt 0:01:22]} Nc8 {[%emt 0:00:25]} 43. Qf4 {[%emt 0:00:32]} Qxf4+ {[%emt 0:00:36]} (43... a5 $11 {remains equal.}) 44. Kxf4 {[%emt 0:00:01] KB-KN} Nb6 {[%emt 0:00:28]} 45. a5 {[%emt 0:00:20]} Na4 {[%emt 0:00:31]} 46. Ke5 {[%emt 0:02:13]} c5 $2 {[%emt 0:00:30][%mdl 8192] This costs Black the game.} (46... Ke7 $14) 47. Bc2 $18 {[%emt 0:01:41]} b5 {[%emt 0:00:25]} 48. cxb5 {[%emt 0:00:43]} axb5 {[%emt 0:00:01][%cal Ba6b5,Bb5b4][%mdl 32]} 49. dxc5 {[%emt 0:00:19]} Nxc5 {[%emt 0:00:42]} 50. Kd5 {[%emt 0:00:34]} Nd7 {[%emt 0:00:25]} 51. Kc6 {[%emt 0:00:23][%cal Oa5a6] [#] White wants to mate with a6!} b4 {[%emt 0:00:27]} 52. a6 {[%emt 0:00:26] White mates.} Nb8+ {[%emt 0:00:14]} 53. Kb7 {[%emt 0:00:17]} Nxa6 {[%emt 0:00:12]} 54. Kxa6 {[%emt 0:00:02] KB-KPP} Ke7 {[%emt 0:00:40]} 55. Kb5 {[%emt 0:00:07]} Ke6 {[%emt 0:00:11]} 56. Kxb4 {[%emt 0:00:44]} Ke5 {[%emt 0:00:07]} 57. Kc3 {[%emt 0:00:38]} Kf4 {[%emt 0:00:07]} 58. Bd1 {[%emt 0:00:46]} g5 {[%emt 0:00:26]} 59. f3 {[%emt 0:00:36] Weighted Error Value: White=0.04 (flawless) /Black=0.20 (precise) .  Loses game:     	---       	Black=1      Mistake:       	---       	Black=1      Inaccurate:     	---       	Black=1      OK:         	White=9     	Black=15} 1-0

[Event "Budapest IM-B ONE WEEK Feb 2024"]
[Site "Budapest"]
[Date "2024.02.26"]
[Round "1.4"]
[White "Velikic, Adela"]
[Black "Nemeth, Zoltan"]
[Result "1-0"]
[ECO "D43"]
[WhiteElo "2266"]
[BlackElo "2194"]
[Annotator "TA"]
[PlyCount "90"]
[EventDate "2024.02.25"]
[EventType "tourn"]
[EventCountry "HUN"]
[SourceTitle "playchess.com"]
[Source "ChessBase"]
[SourceQuality "1"]
[TimeControl "5400+30"]

{[%evp 19,90,6,12,8,22,19,25,33,34,27,23,43,45,0,36,0,0,0,93,99,122,123,136,15,11,5,9,9,8,0,0,-15,-10,-7,-8,-13,-16,-17,-12,-18,0,-78,-57,-57,-64,-83,-90,-81,-78,-66,-81,-111,-44,-44,-52,-52,-50,-89,-20,-28,-6,-12,0,-7,0,0,0,0,0,0,0,-8,0]} 1. d4 {[%emt 0:00:05]} d5 {[%emt 0:00:52]} 2. c4 {[%emt 0:00:12]} c6 {[%emt 0:02:06]} 3. Nf3 {[%emt 0:00:17]} e6 {[%emt 0:03:23]} 4. Nc3 {[%emt 0:00:57]} Nf6 {[%emt 0:01:12]} 5. Bg5 {[%emt 0:00:25]} h6 {[%emt 0:00:38]} 6. Bxf6 {[%emt 0:01:14]} Qxf6 {[%emt 0:00:06]} 7. Qb3 {[%emt 0:00:22]} Nd7 {[%emt 0:08:15]} 8. e4 {[%emt 0:07:50]} dxe4 {[%emt 0:00:39]} 9. Nxe4 {[%emt 0:00:17]} Qf4 {[%emt 0:06:44]} 10. Bd3 {[%emt 0:05:12]} Be7 {[%emt 0:01:39]} 11. O-O {[%emt 0:02:19]} O-O {[%emt 0:01:15]} 12. Rfe1 {[%emt 0:05:39]} b6 {[%emt 0:03:45]} 13. Rad1 {[%emt 0:10:43] White has an edge.} Bb7 {[%emt 0:00:57]} 14. Bb1 {[%emt 0:02:33][%cal Oc4c5]} Rfd8 {[%emt 0:02:24]} 15. Ng3 {[%emt 0:14:11][%cal Be4g3,Bg3h5,Bh5f4][%mdl 32]} Qc7 {[%emt 0:07:07]} 16. a3 {[%emt 0:16:26]} (16. Nh5 $5) 16... Nf8 {[%emt 0:07:39]} 17. Ne5 {[%emt 0:06:49]} (17. Nh5 $5) 17... Bd6 {[%emt 0:01:01]} 18. Nh5 {[%emt 0:07:38]} c5 {[%emt 0:11:17]} (18... Bxe5 $11 19. dxe5 Rxd1 20. Qxd1 Qe7) 19. Qg3 $16 {[%emt 0:01:32][%csl Gh5][%cal Rg3g7] White is much more active.} f5 {[%emt 0:00:08]} 20. d5 {[%emt 0:04:04]} Bxe5 {[%emt 0:09:20]} 21. Qxe5 {[%emt 0:02:14]} ({White has to play} 21. Rxe5 $16 Qf7 22. Nf4) 21... Qxe5 $11 {[%emt 0:00:13]} 22. Rxe5 {[%emt 0:00:05]} g6 $132 {[%emt 0:02:09][%mdl 2048] Black is not holding back} 23. Nf4 {[%emt 0:00:37]} exd5 {[%emt 0:00:21]} 24. cxd5 {[%emt 0:01:21]} Re8 {[%emt 0:01:58] Wards off Re7} 25. Rde1 {[%emt 0:00:56]} Rxe5 {[%emt 0:03:47]} 26. Rxe5 {[%emt 0:00:02] Hoping for Ba2.} Kf7 $1 {[%emt 0:10:26]} 27. d6 {[%emt 0:01:39] Threatens to win with Re7+.} Kf6 {[%emt 0:01:10]} 28. Re7 {[%emt 0:01:06]} Bc6 {[%emt 0:00:45] White must now prevent ...Rd8.} 29. Ba2 $1 {[%emt 0:03:43] Rf7+ would now be deadly.} Rd8 {[%emt 0:00:20]} 30. Rf7+ {[%emt 0:03:06]} (30. Rxa7 $2 Rxd6 31. h4 Ke5 $19) (30. Ne2 $11 {remains equal.}) 30... Ke5 $17 {[%emt 0:00:05]} 31. Nd3+ {[%emt 0:01:46]} (31. Rxf8 $2 Rxd6 32. Nxg6+ Rxg6 $19) 31... Kxd6 {[%emt 0:01:27]} 32. f4 {[%emt 0:00:25][%cal Og1f2] [#]} Bd5 $1 {[%emt 0:01:51]} 33. Bxd5 {[%emt 0:00:32]} Kxd5 {[%emt 0:00:06][%mdl 4096] Endgame. KRN-KRN} 34. Ne5 {[%emt 0:00:38]} g5 {[%emt 0:03:55]} 35. Nf3 {[%emt 0:00:32]} Ke6 {[%emt 0:01:46]} ({Black should play} 35... Ne6 $17 36. Rxf5+ Kc4 37. fxg5 Nxg5) 36. Rxa7 $15 {[%emt 0:00:25]} gxf4 {[%emt 0:00:07]} 37. Kf2 {[%emt 0:00:35]} Rd3 {[%emt 0:00:40] Strongly threatening ...Rb3.} 38. Ra8 {[%emt 0:00:23] [#]} Ke7 {[%emt 0:01:47]} (38... Nd7 $1 $17 39. b4 c4) 39. b4 $11 {[%emt 0:00:34]} cxb4 {[%emt 0:00:23]} 40. axb4 {[%emt 0:00:03] The position is equal.} Rb3 {[%emt 0:00:08]} 41. Ne5 {[%emt 0:00:14]} (41. Nd4 $5 Rb2+ $8 42. Kf1 $11) 41... Ne6 {[%emt 0:01:59]} (41... Rxb4 $2 {perishes.} 42. Nc6+ Kd6 43. Nxb4 $18) 42. Rb8 {[%emt 0:00:28]} Rb2+ {[%emt 0:00:25]} (42... Rxb4 $2 43. Nc6+ Kd6 44. Nxb4 $18) 43. Kf1 {[%emt 0:00:08]} Rb1+ {[%emt 0:00:36]} (43... Rxb4 $2 44. Nc6+ Kf6 45. Nxb4 $18) 44. Kf2 {[%emt 0:00:15]} Rb2+ {[%emt 0:01:41]} (44... Rxb4 $2 {too greedy.} 45. Nc6+ Kd6 46. Nxb4 $18) 45. Kf1 {[%emt 0:00:13]} Rb1+ {[%emt 0:01:37][%mdl 32768] Weighted Error Value: White=0.16 (very precise) /Black=0.13 (very precise) .  Mistake:       	White=2     	Black=3      Inaccurate:     	White=4     	Black=1      OK:         	White=15    	Black=11     Best:        	White=3     	Black=2      Strong:       	White=1     	Black=2     . Loss on time!?} (45... Rxb4 $2 {is the wrong capture.} 46. Nc6+ Kf6 47. Nxb4 $18) 1-0

[Event "Budapest IM-B ONE WEEK Feb 2024"]
[Site "Budapest"]
[Date "2024.02.26"]
[Round "1.5"]
[White "Krizsany, Laszlo"]
[Black "Poysti, Nathanael"]
[Result "1-0"]
[ECO "D41"]
[WhiteElo "2346"]
[BlackElo "2163"]
[Annotator "TA"]
[PlyCount "63"]
[EventDate "2024.02.25"]
[EventType "tourn"]
[EventCountry "HUN"]
[SourceTitle "playchess.com"]
[Source "ChessBase"]
[SourceQuality "1"]
[TimeControl "5400+30"]

{[%evp 20,63,12,25,18,8,20,10,8,0,7,0,0,-24,39,0,0,0,0,0,91,97,100,106,89,95,104,91,122,110,136,118,112,118,165,147,183,150,313,268,1218,1199,1335,1247,1435,429]} 1. d4 {[%emt 0:00:05]} Nf6 {[%emt 0:00:05]} 2. c4 {[%emt 0:00:07]} e6 {[%emt 0:00:04]} 3. Nf3 {[%emt 0:00:10]} d5 {[%emt 0:00:17]} 4. Nc3 {[%emt 0:00:09]} c5 {[%emt 0:00:21]} 5. cxd5 {[%emt 0:00:18]} Nxd5 {[%emt 0:00:10]} 6. e4 {[%emt 0:00:45]} Nxc3 7. bxc3 {[%emt 0:00:05]} cxd4 {[%emt 0:00:13]} 8. cxd4 {[%emt 0:00:05]} Bb4+ {[%emt 0:00:05]} 9. Bd2 {[%emt 0:00:08]} Bxd2+ {[%emt 0:00:07]} 10. Qxd2 {[%emt 0:00:31]} O-O {[%emt 0:00:20]} 11. Rc1 {[%emt 0:00:36]} b6 {[%emt 0:01:33]} 12. Bd3 {[%emt 0:00:18]} Bb7 {[%emt 0:00:13]} 13. O-O {[%emt 0:00:14]} Nd7 {[%emt 0:00:28][%cal Bb8d7,Bd7f6,Bf6d5][%mdl 32] The position is equal.} 14. Qf4 {[%emt 0:00:15]} h6 {[%emt 0:01:15]} 15. h3 {[%emt 0:14:56]} Nf6 {[%emt 0:07:47]} 16. e5 {[%emt 0:15:57]} Qb8 {[%emt 0:11:00]} (16... Nh5 $11 17. Qg4 Bxf3 18. Qxf3 Qxd4) 17. Nh2 {[%emt 0:08:09][%cal Bf3h2,Bh2g4,Bg4f6][%mdl 32]} Nd5 {[%emt 0:01:15]} 18. Qe4 {[%emt 0:03:19]} g6 {[%emt 0:17:26]} 19. Qh4 {[%emt 0:03:08]} Kg7 {[%emt 0:00:34]} (19... h5 $11) 20. Ng4 $36 {[%emt 0:00:50][%mdl 2048] White has strong initiative.} Rh8 {[%emt 0:00:28]} 21. Nf6 {[%emt 0:02:09] Strongly threatening Nxd5.} Qd8 {[%emt 0:06:59][%cal Rd5f6]} 22. Be4 {[%emt 0:00:31] White has more active pieces.} Rb8 {[%emt 0:06:07]} 23. Bxd5 {[%emt 0:00:32]} Bxd5 {[%emt 0:00:01]} 24. a3 {[%emt 0:04:29]} Rb7 {[%emt 0:00:03]} 25. Qf4 {[%emt 0:04:24]} b5 {[%emt 0:15:10]} 26. Rc5 {[%emt 0:04:06]} Bc4 {[%emt 0:00:42]} (26... a5 $16) 27. Re1 {[%emt 0:02:03]} Qe7 {[%emt 0:05:39]} 28. Re3 {[%emt 0:02:46] Black is weak on the dark squares} Rd8 $2 {[%emt 0:01:20] Black cannot hold the game after this.} (28... Rc7 $16 {was worth a try.} 29. Rxc7 Qxc7) 29. h4 $18 {[%emt 0:02:43] Hoping for h5.} Rc7 $2 {[%emt 0:04:10]} (29... Rh8 30. h5 Rc7 31. hxg6 fxg6 32. Nh5+ Kh7 33. Rxc7 Qxc7) 30. Ng4 {[%emt 0:02:19] White is clearly winning.} Rh8 {[%emt 0:01:35]} 31. Qf6+ {[%emt 0:01:11]} Kh7 {[%emt 0:03:36] [#]} 32. h5 $1 {[%emt 0:01:01][%mdl 512] Weighted Error Value: White=0.06 (flawless) /Black=0.30.  Loses game:     	---       	Black=1      Mistake:       	---       	Black=4      Inaccurate:     	White=1     	Black=1      OK:         	White=9     	Black=9      Best:        	White=3     	---} 1-0